{"text_format":"1","workbook":"xlsx","n_sheets":3,"sheets":["Battery Calculator for Runtime","Runtime Calculator","Data"],"not_rendered":{"charts":0,"images":2,"macros":1,"external_links":0,"defined_names":5,"comments":0,"pivot_tables":0},"unopened":[],"bounds":{"document_bytes":16777216,"sheet_cells":100000,"rows_first":2000,"rows_last":500,"rows_between":2000,"halvings":0,"cell_chars":16384,"cell_head_chars":4096},"cells_cut":0,"cells_raw":0,"read":"whole","date_system":"1900"}

{"sheet":"Battery Calculator for Runtime","index":0,"n_rows":39,"n_cols":8,"rows_kept":39,"cut":false,"hidden":false,"merged":[[1,2,2,4],[38,7,39,7],[38,1,39,1],[36,1,37,1],[38,2,39,2],[38,3,39,3],[38,4,39,4],[38,5,39,5],[38,6,39,6],[36,3,37,3],[36,2,37,2],[36,4,37,4],[36,5,37,5],[36,6,37,6],[36,7,37,7]]}
[]
[null,null,"Lithium Ion Battery Calculator"]
[]
[]
[null,"Cells in Series",5]
[null,"Cells in Paralell",2]
[null,"Standard Discharge Current (in Amps)",5]
[null,"Max Discharge Current (in Amps)",30]
[]
[null,null,"Cell Characteristics"]
[null,"Cell Type","High Power","High Power","High Power","High Capacity","High Capacity","High Power"]
[null,"Vendor","Moli","LithiumWerks","Moli","LG","LG","Panasonic"]
[null,"Model","INR18650-P26A","ANR26650M1B","INR-21700-P42A","INR18650MJ1","INR18650MJ1","UR18650A"]
[null,"Chemistry","Lithium Ion","Lithium Iron Phosphate","Lithium Ion","Lithium Ion","Lithium Ion","Lithium Ion"]
[null,"Size",18650,26650,21700,18650,18650,18650]
[null,"Nominal Capacity",{"$f":"IFERROR( _xlfn.XLOOKUP($B16,'Runtime Calculator'!$A$17:$A$24,_xlfn.XLOOKUP(C$13,'Runtime Calculator'!$B$12:$D$12,'Runtime Calculator'!$B$17:$D$24)),\"\")","v":2600},{"$f":"IFERROR( _xlfn.XLOOKUP($B16,'Runtime Calculator'!$A$17:$A$24,_xlfn.XLOOKUP(D$13,'Runtime Calculator'!$B$12:$D$12,'Runtime Calculator'!$B$17:$D$24)),\"\")","v":2600},{"$f":"IFERROR( _xlfn.XLOOKUP($B16,'Runtime Calculator'!$A$17:$A$24,_xlfn.XLOOKUP(E$13,'Runtime Calculator'!$B$12:$D$12,'Runtime Calculator'!$B$17:$D$24)),\"\")","v":4200},{"$f":"IFERROR( _xlfn.XLOOKUP($B16,'Runtime Calculator'!$A$17:$A$24,_xlfn.XLOOKUP(F$13,'Runtime Calculator'!$B$12:$D$12,'Runtime Calculator'!$B$17:$D$24)),\"\")","v":""},{"$f":"IFERROR( _xlfn.XLOOKUP($B16,'Runtime Calculator'!$A$17:$A$24,_xlfn.XLOOKUP(G$13,'Runtime Calculator'!$B$12:$D$12,'Runtime Calculator'!$B$17:$D$24)),\"\")","v":""},{"$f":"IFERROR( _xlfn.XLOOKUP($B16,'Runtime Calculator'!$A$17:$A$24,_xlfn.XLOOKUP(H$13,'Runtime Calculator'!$B$12:$D$12,'Runtime Calculator'!$B$17:$D$24)),\"\")","v":""}]
[null,"Minimum Capacity",{"$f":"IFERROR( _xlfn.XLOOKUP($B17,'Runtime Calculator'!$A$17:$A$24,_xlfn.XLOOKUP(C$13,'Runtime Calculator'!$B$12:$D$12,'Runtime Calculator'!$B$17:$D$24)),\"\")","v":0},{"$f":"IFERROR( _xlfn.XLOOKUP($B17,'Runtime Calculator'!$A$17:$A$24,_xlfn.XLOOKUP(D$13,'Runtime Calculator'!$B$12:$D$12,'Runtime Calculator'!$B$17:$D$24)),\"\")","v":2500},{"$f":"IFERROR( _xlfn.XLOOKUP($B17,'Runtime Calculator'!$A$17:$A$24,_xlfn.XLOOKUP(E$13,'Runtime Calculator'!$B$12:$D$12,'Runtime Calculator'!$B$17:$D$24)),\"\")","v":4000},{"$f":"IFERROR( _xlfn.XLOOKUP($B17,'Runtime Calculator'!$A$17:$A$24,_xlfn.XLOOKUP(F$13,'Runtime Calculator'!$B$12:$D$12,'Runtime Calculator'!$B$17:$D$24)),\"\")","v":""},{"$f":"IFERROR( _xlfn.XLOOKUP($B17,'Runtime Calculator'!$A$17:$A$24,_xlfn.XLOOKUP(G$13,'Runtime Calculator'!$B$12:$D$12,'Runtime Calculator'!$B$17:$D$24)),\"\")","v":""},{"$f":"IFERROR( _xlfn.XLOOKUP($B17,'Runtime Calculator'!$A$17:$A$24,_xlfn.XLOOKUP(H$13,'Runtime Calculator'!$B$12:$D$12,'Runtime Calculator'!$B$17:$D$24)),\"\")","v":""}]
[null,"Voltage",{"$f":"IFERROR( _xlfn.XLOOKUP($B18,'Runtime Calculator'!$A$17:$A$24,_xlfn.XLOOKUP(C$13,'Runtime Calculator'!$B$12:$D$12,'Runtime Calculator'!$B$17:$D$24)),\"\")","v":3.6},{"$f":"IFERROR( _xlfn.XLOOKUP($B18,'Runtime Calculator'!$A$17:$A$24,_xlfn.XLOOKUP(D$13,'Runtime Calculator'!$B$12:$D$12,'Runtime Calculator'!$B$17:$D$24)),\"\")","v":3.3},{"$f":"IFERROR( _xlfn.XLOOKUP($B18,'Runtime Calculator'!$A$17:$A$24,_xlfn.XLOOKUP(E$13,'Runtime Calculator'!$B$12:$D$12,'Runtime Calculator'!$B$17:$D$24)),\"\")","v":3.6},{"$f":"IFERROR( _xlfn.XLOOKUP($B18,'Runtime Calculator'!$A$17:$A$24,_xlfn.XLOOKUP(F$13,'Runtime Calculator'!$B$12:$D$12,'Runtime Calculator'!$B$17:$D$24)),\"\")","v":""},{"$f":"IFERROR( _xlfn.XLOOKUP($B18,'Runtime Calculator'!$A$17:$A$24,_xlfn.XLOOKUP(G$13,'Runtime Calculator'!$B$12:$D$12,'Runtime Calculator'!$B$17:$D$24)),\"\")","v":""},{"$f":"IFERROR( _xlfn.XLOOKUP($B18,'Runtime Calculator'!$A$17:$A$24,_xlfn.XLOOKUP(H$13,'Runtime Calculator'!$B$12:$D$12,'Runtime Calculator'!$B$17:$D$24)),\"\")","v":""}]
[null,"Cutoff Voltag",{"$f":"IFERROR( _xlfn.XLOOKUP($B19,'Runtime Calculator'!$A$17:$A$24,_xlfn.XLOOKUP(C$13,'Runtime Calculator'!$B$12:$D$12,'Runtime Calculator'!$B$17:$D$24)),\"\")","v":2.5},{"$f":"IFERROR( _xlfn.XLOOKUP($B19,'Runtime Calculator'!$A$17:$A$24,_xlfn.XLOOKUP(D$13,'Runtime Calculator'!$B$12:$D$12,'Runtime Calculator'!$B$17:$D$24)),\"\")","v":2},{"$f":"IFERROR( _xlfn.XLOOKUP($B19,'Runtime Calculator'!$A$17:$A$24,_xlfn.XLOOKUP(E$13,'Runtime Calculator'!$B$12:$D$12,'Runtime Calculator'!$B$17:$D$24)),\"\")","v":2.5},{"$f":"IFERROR( _xlfn.XLOOKUP($B19,'Runtime Calculator'!$A$17:$A$24,_xlfn.XLOOKUP(F$13,'Runtime Calculator'!$B$12:$D$12,'Runtime Calculator'!$B$17:$D$24)),\"\")","v":""},{"$f":"IFERROR( _xlfn.XLOOKUP($B19,'Runtime Calculator'!$A$17:$A$24,_xlfn.XLOOKUP(G$13,'Runtime Calculator'!$B$12:$D$12,'Runtime Calculator'!$B$17:$D$24)),\"\")","v":""},{"$f":"IFERROR( _xlfn.XLOOKUP($B19,'Runtime Calculator'!$A$17:$A$24,_xlfn.XLOOKUP(H$13,'Runtime Calculator'!$B$12:$D$12,'Runtime Calculator'!$B$17:$D$24)),\"\")","v":""}]
[null,"Max Current",{"$f":"IFERROR( _xlfn.XLOOKUP($B20,'Runtime Calculator'!$A$17:$A$24,_xlfn.XLOOKUP(C$13,'Runtime Calculator'!$B$12:$D$12,'Runtime Calculator'!$B$17:$D$24)),\"\")","v":35},{"$f":"IFERROR( _xlfn.XLOOKUP($B20,'Runtime Calculator'!$A$17:$A$24,_xlfn.XLOOKUP(D$13,'Runtime Calculator'!$B$12:$D$12,'Runtime Calculator'!$B$17:$D$24)),\"\")","v":120},{"$f":"IFERROR( _xlfn.XLOOKUP($B20,'Runtime Calculator'!$A$17:$A$24,_xlfn.XLOOKUP(E$13,'Runtime Calculator'!$B$12:$D$12,'Runtime Calculator'!$B$17:$D$24)),\"\")","v":45},{"$f":"IFERROR( _xlfn.XLOOKUP($B20,'Runtime Calculator'!$A$17:$A$24,_xlfn.XLOOKUP(F$13,'Runtime Calculator'!$B$12:$D$12,'Runtime Calculator'!$B$17:$D$24)),\"\")","v":""},{"$f":"IFERROR( _xlfn.XLOOKUP($B20,'Runtime Calculator'!$A$17:$A$24,_xlfn.XLOOKUP(G$13,'Runtime Calculator'!$B$12:$D$12,'Runtime Calculator'!$B$17:$D$24)),\"\")","v":""},{"$f":"IFERROR( _xlfn.XLOOKUP($B20,'Runtime Calculator'!$A$17:$A$24,_xlfn.XLOOKUP(H$13,'Runtime Calculator'!$B$12:$D$12,'Runtime Calculator'!$B$17:$D$24)),\"\")","v":""}]
[null,"Max Charge",{"$f":"IFERROR( _xlfn.XLOOKUP($B21,'Runtime Calculator'!$A$17:$A$24,_xlfn.XLOOKUP(C$13,'Runtime Calculator'!$B$12:$D$12,'Runtime Calculator'!$B$17:$D$24)),\"\")","v":6},{"$f":"IFERROR( _xlfn.XLOOKUP($B21,'Runtime Calculator'!$A$17:$A$24,_xlfn.XLOOKUP(D$13,'Runtime Calculator'!$B$12:$D$12,'Runtime Calculator'!$B$17:$D$24)),\"\")","v":10},{"$f":"IFERROR( _xlfn.XLOOKUP($B21,'Runtime Calculator'!$A$17:$A$24,_xlfn.XLOOKUP(E$13,'Runtime Calculator'!$B$12:$D$12,'Runtime Calculator'!$B$17:$D$24)),\"\")","v":0},{"$f":"IFERROR( _xlfn.XLOOKUP($B21,'Runtime Calculator'!$A$17:$A$24,_xlfn.XLOOKUP(F$13,'Runtime Calculator'!$B$12:$D$12,'Runtime Calculator'!$B$17:$D$24)),\"\")","v":""},{"$f":"IFERROR( _xlfn.XLOOKUP($B21,'Runtime Calculator'!$A$17:$A$24,_xlfn.XLOOKUP(G$13,'Runtime Calculator'!$B$12:$D$12,'Runtime Calculator'!$B$17:$D$24)),\"\")","v":""},{"$f":"IFERROR( _xlfn.XLOOKUP($B21,'Runtime Calculator'!$A$17:$A$24,_xlfn.XLOOKUP(H$13,'Runtime Calculator'!$B$12:$D$12,'Runtime Calculator'!$B$17:$D$24)),\"\")","v":""}]
[null,"Standard Charge Current",{"$f":"IFERROR( _xlfn.XLOOKUP($B22,'Runtime Calculator'!$A$17:$A$24,_xlfn.XLOOKUP(C$13,'Runtime Calculator'!$B$12:$D$12,'Runtime Calculator'!$B$17:$D$24)),\"\")","v":2.6},{"$f":"IFERROR( _xlfn.XLOOKUP($B22,'Runtime Calculator'!$A$17:$A$24,_xlfn.XLOOKUP(D$13,'Runtime Calculator'!$B$12:$D$12,'Runtime Calculator'!$B$17:$D$24)),\"\")","v":3},{"$f":"IFERROR( _xlfn.XLOOKUP($B22,'Runtime Calculator'!$A$17:$A$24,_xlfn.XLOOKUP(E$13,'Runtime Calculator'!$B$12:$D$12,'Runtime Calculator'!$B$17:$D$24)),\"\")","v":4.2},{"$f":"IFERROR( _xlfn.XLOOKUP($B22,'Runtime Calculator'!$A$17:$A$24,_xlfn.XLOOKUP(F$13,'Runtime Calculator'!$B$12:$D$12,'Runtime Calculator'!$B$17:$D$24)),\"\")","v":""},{"$f":"IFERROR( _xlfn.XLOOKUP($B22,'Runtime Calculator'!$A$17:$A$24,_xlfn.XLOOKUP(G$13,'Runtime Calculator'!$B$12:$D$12,'Runtime Calculator'!$B$17:$D$24)),\"\")","v":""},{"$f":"IFERROR( _xlfn.XLOOKUP($B22,'Runtime Calculator'!$A$17:$A$24,_xlfn.XLOOKUP(H$13,'Runtime Calculator'!$B$12:$D$12,'Runtime Calculator'!$B$17:$D$24)),\"\")","v":""}]
[null,"Standard Charge Time",{"$f":"IFERROR( _xlfn.XLOOKUP($B23,'Runtime Calculator'!$A$17:$A$24,_xlfn.XLOOKUP(C$13,'Runtime Calculator'!$B$12:$D$12,'Runtime Calculator'!$B$17:$D$24)),\"\")","v":1.5},{"$f":"IFERROR( _xlfn.XLOOKUP($B23,'Runtime Calculator'!$A$17:$A$24,_xlfn.XLOOKUP(D$13,'Runtime Calculator'!$B$12:$D$12,'Runtime Calculator'!$B$17:$D$24)),\"\")","v":0},{"$f":"IFERROR( _xlfn.XLOOKUP($B23,'Runtime Calculator'!$A$17:$A$24,_xlfn.XLOOKUP(E$13,'Runtime Calculator'!$B$12:$D$12,'Runtime Calculator'!$B$17:$D$24)),\"\")","v":1.5},{"$f":"IFERROR( _xlfn.XLOOKUP($B23,'Runtime Calculator'!$A$17:$A$24,_xlfn.XLOOKUP(F$13,'Runtime Calculator'!$B$12:$D$12,'Runtime Calculator'!$B$17:$D$24)),\"\")","v":""},{"$f":"IFERROR( _xlfn.XLOOKUP($B23,'Runtime Calculator'!$A$17:$A$24,_xlfn.XLOOKUP(G$13,'Runtime Calculator'!$B$12:$D$12,'Runtime Calculator'!$B$17:$D$24)),\"\")","v":""},{"$f":"IFERROR( _xlfn.XLOOKUP($B23,'Runtime Calculator'!$A$17:$A$24,_xlfn.XLOOKUP(H$13,'Runtime Calculator'!$B$12:$D$12,'Runtime Calculator'!$B$17:$D$24)),\"\")","v":""}]
[]
[null,null,"Battery Pack Characteristics"]
[null,"Pack Voltage",{"$f":"IFERROR(_xlfn.XLOOKUP($B26,'Runtime Calculator'!$A$29:$A$38,_xlfn.XLOOKUP(C$13,'Runtime Calculator'!$B$28:$D$28,'Runtime Calculator'!$B$29:$D$38,\"\")),\"\")","v":18},{"$f":"IFERROR(_xlfn.XLOOKUP($B26,'Runtime Calculator'!$A$29:$A$38,_xlfn.XLOOKUP(D$13,'Runtime Calculator'!$B$28:$D$28,'Runtime Calculator'!$B$29:$D$38,\"\")),\"\")","v":16.5},{"$f":"IFERROR(_xlfn.XLOOKUP($B26,'Runtime Calculator'!$A$29:$A$38,_xlfn.XLOOKUP(E$13,'Runtime Calculator'!$B$28:$D$28,'Runtime Calculator'!$B$29:$D$38,\"\")),\"\")","v":18},{"$f":"IFERROR(_xlfn.XLOOKUP($B26,'Runtime Calculator'!$A$29:$A$38,_xlfn.XLOOKUP(F$13,'Runtime Calculator'!$B$28:$D$28,'Runtime Calculator'!$B$29:$D$38,\"\")),\"\")","v":""},{"$f":"IFERROR(_xlfn.XLOOKUP($B26,'Runtime Calculator'!$A$29:$A$38,_xlfn.XLOOKUP(G$13,'Runtime Calculator'!$B$28:$D$28,'Runtime Calculator'!$B$29:$D$38,\"\")),\"\")","v":""},{"$f":"IFERROR(_xlfn.XLOOKUP($B26,'Runtime Calculator'!$A$29:$A$38,_xlfn.XLOOKUP(H$13,'Runtime Calculator'!$B$28:$D$28,'Runtime Calculator'!$B$29:$D$38,\"\")),\"\")","v":""}]
[null,"Pack Cutoff Voltage",{"$f":"IFERROR(_xlfn.XLOOKUP($B27,'Runtime Calculator'!$A$29:$A$38,_xlfn.XLOOKUP(C$13,'Runtime Calculator'!$B$28:$D$28,'Runtime Calculator'!$B$29:$D$38,\"\")),\"\")","v":12.5},{"$f":"IFERROR(_xlfn.XLOOKUP($B27,'Runtime Calculator'!$A$29:$A$38,_xlfn.XLOOKUP(D$13,'Runtime Calculator'!$B$28:$D$28,'Runtime Calculator'!$B$29:$D$38,\"\")),\"\")","v":10},{"$f":"IFERROR(_xlfn.XLOOKUP($B27,'Runtime Calculator'!$A$29:$A$38,_xlfn.XLOOKUP(E$13,'Runtime Calculator'!$B$28:$D$28,'Runtime Calculator'!$B$29:$D$38,\"\")),\"\")","v":12.5},{"$f":"IFERROR(_xlfn.XLOOKUP($B27,'Runtime Calculator'!$A$29:$A$38,_xlfn.XLOOKUP(F$13,'Runtime Calculator'!$B$28:$D$28,'Runtime Calculator'!$B$29:$D$38,\"\")),\"\")","v":""},{"$f":"IFERROR(_xlfn.XLOOKUP($B27,'Runtime Calculator'!$A$29:$A$38,_xlfn.XLOOKUP(G$13,'Runtime Calculator'!$B$28:$D$28,'Runtime Calculator'!$B$29:$D$38,\"\")),\"\")","v":""},{"$f":"IFERROR(_xlfn.XLOOKUP($B27,'Runtime Calculator'!$A$29:$A$38,_xlfn.XLOOKUP(H$13,'Runtime Calculator'!$B$28:$D$28,'Runtime Calculator'!$B$29:$D$38,\"\")),\"\")","v":""}]
[null,"Rated Capacity (mAh)",{"$f":"IFERROR(_xlfn.XLOOKUP($B28,'Runtime Calculator'!$A$29:$A$38,_xlfn.XLOOKUP(C$13,'Runtime Calculator'!$B$28:$D$28,'Runtime Calculator'!$B$29:$D$38,\"\")),\"\")","v":5200},{"$f":"IFERROR(_xlfn.XLOOKUP($B28,'Runtime Calculator'!$A$29:$A$38,_xlfn.XLOOKUP(D$13,'Runtime Calculator'!$B$28:$D$28,'Runtime Calculator'!$B$29:$D$38,\"\")),\"\")","v":5200},{"$f":"IFERROR(_xlfn.XLOOKUP($B28,'Runtime Calculator'!$A$29:$A$38,_xlfn.XLOOKUP(E$13,'Runtime Calculator'!$B$28:$D$28,'Runtime Calculator'!$B$29:$D$38,\"\")),\"\")","v":8400},{"$f":"IFERROR(_xlfn.XLOOKUP($B28,'Runtime Calculator'!$A$29:$A$38,_xlfn.XLOOKUP(F$13,'Runtime Calculator'!$B$28:$D$28,'Runtime Calculator'!$B$29:$D$38,\"\")),\"\")","v":""},{"$f":"IFERROR(_xlfn.XLOOKUP($B28,'Runtime Calculator'!$A$29:$A$38,_xlfn.XLOOKUP(G$13,'Runtime Calculator'!$B$28:$D$28,'Runtime Calculator'!$B$29:$D$38,\"\")),\"\")","v":""},{"$f":"IFERROR(_xlfn.XLOOKUP($B28,'Runtime Calculator'!$A$29:$A$38,_xlfn.XLOOKUP(H$13,'Runtime Calculator'!$B$28:$D$28,'Runtime Calculator'!$B$29:$D$38,\"\")),\"\")","v":""}]
[null,"Rated Capacity (Ah)",{"$f":"IFERROR(_xlfn.XLOOKUP($B29,'Runtime Calculator'!$A$29:$A$38,_xlfn.XLOOKUP(C$13,'Runtime Calculator'!$B$28:$D$28,'Runtime Calculator'!$B$29:$D$38,\"\")),\"\")","v":5.2},{"$f":"IFERROR(_xlfn.XLOOKUP($B29,'Runtime Calculator'!$A$29:$A$38,_xlfn.XLOOKUP(D$13,'Runtime Calculator'!$B$28:$D$28,'Runtime Calculator'!$B$29:$D$38,\"\")),\"\")","v":5.2},{"$f":"IFERROR(_xlfn.XLOOKUP($B29,'Runtime Calculator'!$A$29:$A$38,_xlfn.XLOOKUP(E$13,'Runtime Calculator'!$B$28:$D$28,'Runtime Calculator'!$B$29:$D$38,\"\")),\"\")","v":8.4},{"$f":"IFERROR(_xlfn.XLOOKUP($B29,'Runtime Calculator'!$A$29:$A$38,_xlfn.XLOOKUP(F$13,'Runtime Calculator'!$B$28:$D$28,'Runtime Calculator'!$B$29:$D$38,\"\")),\"\")","v":""},{"$f":"IFERROR(_xlfn.XLOOKUP($B29,'Runtime Calculator'!$A$29:$A$38,_xlfn.XLOOKUP(G$13,'Runtime Calculator'!$B$28:$D$28,'Runtime Calculator'!$B$29:$D$38,\"\")),\"\")","v":""},{"$f":"IFERROR(_xlfn.XLOOKUP($B29,'Runtime Calculator'!$A$29:$A$38,_xlfn.XLOOKUP(H$13,'Runtime Calculator'!$B$28:$D$28,'Runtime Calculator'!$B$29:$D$38,\"\")),\"\")","v":""}]
[null,"Wh",{"$f":"IFERROR(_xlfn.XLOOKUP($B30,'Runtime Calculator'!$A$29:$A$38,_xlfn.XLOOKUP(C$13,'Runtime Calculator'!$B$28:$D$28,'Runtime Calculator'!$B$29:$D$38,\"\")),\"\")","v":93.6},{"$f":"IFERROR(_xlfn.XLOOKUP($B30,'Runtime Calculator'!$A$29:$A$38,_xlfn.XLOOKUP(D$13,'Runtime Calculator'!$B$28:$D$28,'Runtime Calculator'!$B$29:$D$38,\"\")),\"\")","v":85.8},{"$f":"IFERROR(_xlfn.XLOOKUP($B30,'Runtime Calculator'!$A$29:$A$38,_xlfn.XLOOKUP(E$13,'Runtime Calculator'!$B$28:$D$28,'Runtime Calculator'!$B$29:$D$38,\"\")),\"\")","v":151.19999999999999},{"$f":"IFERROR(_xlfn.XLOOKUP($B30,'Runtime Calculator'!$A$29:$A$38,_xlfn.XLOOKUP(F$13,'Runtime Calculator'!$B$28:$D$28,'Runtime Calculator'!$B$29:$D$38,\"\")),\"\")","v":""},{"$f":"IFERROR(_xlfn.XLOOKUP($B30,'Runtime Calculator'!$A$29:$A$38,_xlfn.XLOOKUP(G$13,'Runtime Calculator'!$B$28:$D$28,'Runtime Calculator'!$B$29:$D$38,\"\")),\"\")","v":""},{"$f":"IFERROR(_xlfn.XLOOKUP($B30,'Runtime Calculator'!$A$29:$A$38,_xlfn.XLOOKUP(H$13,'Runtime Calculator'!$B$28:$D$28,'Runtime Calculator'!$B$29:$D$38,\"\")),\"\")","v":""}]
[null,"Max Current",{"$f":"IFERROR(_xlfn.XLOOKUP($B31,'Runtime Calculator'!$A$29:$A$38,_xlfn.XLOOKUP(C$13,'Runtime Calculator'!$B$28:$D$28,'Runtime Calculator'!$B$29:$D$38,\"\")),\"\")","v":70},{"$f":"IFERROR(_xlfn.XLOOKUP($B31,'Runtime Calculator'!$A$29:$A$38,_xlfn.XLOOKUP(D$13,'Runtime Calculator'!$B$28:$D$28,'Runtime Calculator'!$B$29:$D$38,\"\")),\"\")","v":240},{"$f":"IFERROR(_xlfn.XLOOKUP($B31,'Runtime Calculator'!$A$29:$A$38,_xlfn.XLOOKUP(E$13,'Runtime Calculator'!$B$28:$D$28,'Runtime Calculator'!$B$29:$D$38,\"\")),\"\")","v":90},{"$f":"IFERROR(_xlfn.XLOOKUP($B31,'Runtime Calculator'!$A$29:$A$38,_xlfn.XLOOKUP(F$13,'Runtime Calculator'!$B$28:$D$28,'Runtime Calculator'!$B$29:$D$38,\"\")),\"\")","v":""},{"$f":"IFERROR(_xlfn.XLOOKUP($B31,'Runtime Calculator'!$A$29:$A$38,_xlfn.XLOOKUP(G$13,'Runtime Calculator'!$B$28:$D$28,'Runtime Calculator'!$B$29:$D$38,\"\")),\"\")","v":""},{"$f":"IFERROR(_xlfn.XLOOKUP($B31,'Runtime Calculator'!$A$29:$A$38,_xlfn.XLOOKUP(H$13,'Runtime Calculator'!$B$28:$D$28,'Runtime Calculator'!$B$29:$D$38,\"\")),\"\")","v":""}]
[null,"Standard Current Per Cell",{"$f":"IFERROR(_xlfn.XLOOKUP($B32,'Runtime Calculator'!$A$29:$A$38,_xlfn.XLOOKUP(C$13,'Runtime Calculator'!$B$28:$D$28,'Runtime Calculator'!$B$29:$D$38,\"\")),\"\")","v":2.5},{"$f":"IFERROR(_xlfn.XLOOKUP($B32,'Runtime Calculator'!$A$29:$A$38,_xlfn.XLOOKUP(D$13,'Runtime Calculator'!$B$28:$D$28,'Runtime Calculator'!$B$29:$D$38,\"\")),\"\")","v":2.5},{"$f":"IFERROR(_xlfn.XLOOKUP($B32,'Runtime Calculator'!$A$29:$A$38,_xlfn.XLOOKUP(E$13,'Runtime Calculator'!$B$28:$D$28,'Runtime Calculator'!$B$29:$D$38,\"\")),\"\")","v":2.5},{"$f":"IFERROR(_xlfn.XLOOKUP($B32,'Runtime Calculator'!$A$29:$A$38,_xlfn.XLOOKUP(F$13,'Runtime Calculator'!$B$28:$D$28,'Runtime Calculator'!$B$29:$D$38,\"\")),\"\")","v":""},{"$f":"IFERROR(_xlfn.XLOOKUP($B32,'Runtime Calculator'!$A$29:$A$38,_xlfn.XLOOKUP(G$13,'Runtime Calculator'!$B$28:$D$28,'Runtime Calculator'!$B$29:$D$38,\"\")),\"\")","v":""},{"$f":"IFERROR(_xlfn.XLOOKUP($B32,'Runtime Calculator'!$A$29:$A$38,_xlfn.XLOOKUP(H$13,'Runtime Calculator'!$B$28:$D$28,'Runtime Calculator'!$B$29:$D$38,\"\")),\"\")","v":""}]
[null,"Cell Capacity at Standard Current",{"$f":"IFERROR(_xlfn.XLOOKUP($B33,'Runtime Calculator'!$A$29:$A$38,_xlfn.XLOOKUP(C$13,'Runtime Calculator'!$B$28:$D$28,'Runtime Calculator'!$B$29:$D$38,\"\")),\"\")","v":2454.8076923076924},{"$f":"IFERROR(_xlfn.XLOOKUP($B33,'Runtime Calculator'!$A$29:$A$38,_xlfn.XLOOKUP(D$13,'Runtime Calculator'!$B$28:$D$28,'Runtime Calculator'!$B$29:$D$38,\"\")),\"\")","v":2540},{"$f":"IFERROR(_xlfn.XLOOKUP($B33,'Runtime Calculator'!$A$29:$A$38,_xlfn.XLOOKUP(E$13,'Runtime Calculator'!$B$28:$D$28,'Runtime Calculator'!$B$29:$D$38,\"\")),\"\")","v":4225.2976190476193},{"$f":"IFERROR(_xlfn.XLOOKUP($B33,'Runtime Calculator'!$A$29:$A$38,_xlfn.XLOOKUP(F$13,'Runtime Calculator'!$B$28:$D$28,'Runtime Calculator'!$B$29:$D$38,\"\")),\"\")","v":""},{"$f":"IFERROR(_xlfn.XLOOKUP($B33,'Runtime Calculator'!$A$29:$A$38,_xlfn.XLOOKUP(G$13,'Runtime Calculator'!$B$28:$D$28,'Runtime Calculator'!$B$29:$D$38,\"\")),\"\")","v":""},{"$f":"IFERROR(_xlfn.XLOOKUP($B33,'Runtime Calculator'!$A$29:$A$38,_xlfn.XLOOKUP(H$13,'Runtime Calculator'!$B$28:$D$28,'Runtime Calculator'!$B$29:$D$38,\"\")),\"\")","v":""}]
[null,"Pack Capacity at Standard Current",{"$f":"IFERROR(_xlfn.XLOOKUP($B34,'Runtime Calculator'!$A$29:$A$38,_xlfn.XLOOKUP(C$13,'Runtime Calculator'!$B$28:$D$28,'Runtime Calculator'!$B$29:$D$38,\"\")),\"\")","v":4909.6153846153848},{"$f":"IFERROR(_xlfn.XLOOKUP($B34,'Runtime Calculator'!$A$29:$A$38,_xlfn.XLOOKUP(D$13,'Runtime Calculator'!$B$28:$D$28,'Runtime Calculator'!$B$29:$D$38,\"\")),\"\")","v":5080},{"$f":"IFERROR(_xlfn.XLOOKUP($B34,'Runtime Calculator'!$A$29:$A$38,_xlfn.XLOOKUP(E$13,'Runtime Calculator'!$B$28:$D$28,'Runtime Calculator'!$B$29:$D$38,\"\")),\"\")","v":8450.5952380952385},{"$f":"IFERROR(_xlfn.XLOOKUP($B34,'Runtime Calculator'!$A$29:$A$38,_xlfn.XLOOKUP(F$13,'Runtime Calculator'!$B$28:$D$28,'Runtime Calculator'!$B$29:$D$38,\"\")),\"\")","v":""},{"$f":"IFERROR(_xlfn.XLOOKUP($B34,'Runtime Calculator'!$A$29:$A$38,_xlfn.XLOOKUP(G$13,'Runtime Calculator'!$B$28:$D$28,'Runtime Calculator'!$B$29:$D$38,\"\")),\"\")","v":""},{"$f":"IFERROR(_xlfn.XLOOKUP($B34,'Runtime Calculator'!$A$29:$A$38,_xlfn.XLOOKUP(H$13,'Runtime Calculator'!$B$28:$D$28,'Runtime Calculator'!$B$29:$D$38,\"\")),\"\")","v":""}]
[null,"Run Time (hours)",{"$f":"IFERROR(_xlfn.XLOOKUP($B35,'Runtime Calculator'!$A$29:$A$38,_xlfn.XLOOKUP(C$13,'Runtime Calculator'!$B$28:$D$28,'Runtime Calculator'!$B$29:$D$38,\"\")),\"\")","v":0.9819230769230769},{"$f":"IFERROR(_xlfn.XLOOKUP($B35,'Runtime Calculator'!$A$29:$A$38,_xlfn.XLOOKUP(D$13,'Runtime Calculator'!$B$28:$D$28,'Runtime Calculator'!$B$29:$D$38,\"\")),\"\")","v":1.016},{"$f":"IFERROR(_xlfn.XLOOKUP($B35,'Runtime Calculator'!$A$29:$A$38,_xlfn.XLOOKUP(E$13,'Runtime Calculator'!$B$28:$D$28,'Runtime Calculator'!$B$29:$D$38,\"\")),\"\")","v":1.6901190476190477},{"$f":"IFERROR(_xlfn.XLOOKUP($B35,'Runtime Calculator'!$A$29:$A$38,_xlfn.XLOOKUP(F$13,'Runtime Calculator'!$B$28:$D$28,'Runtime Calculator'!$B$29:$D$38,\"\")),\"\")","v":""},{"$f":"IFERROR(_xlfn.XLOOKUP($B35,'Runtime Calculator'!$A$29:$A$38,_xlfn.XLOOKUP(G$13,'Runtime Calculator'!$B$28:$D$28,'Runtime Calculator'!$B$29:$D$38,\"\")),\"\")","v":""},{"$f":"IFERROR(_xlfn.XLOOKUP($B35,'Runtime Calculator'!$A$29:$A$38,_xlfn.XLOOKUP(H$13,'Runtime Calculator'!$B$28:$D$28,'Runtime Calculator'!$B$29:$D$38,\"\")),\"\")","v":""}]
[]
[null,"Notes",{"$f":"IFERROR( IF( $C$7 < _xlfn.XLOOKUP(C$13,'Runtime Calculator'!$B$12:$D$12,'Runtime Calculator'!$B$42:$D$42), \"Run Time will be greater than listed Run Time\",\"\"),\"\")","v":""},{"$f":"IFERROR( IF( $C$7 < _xlfn.XLOOKUP(D$13,'Runtime Calculator'!$B$12:$D$12,'Runtime Calculator'!$B$42:$D$42), \"Run Time will be greater than listed Run Time\",\"\"),\"\")","v":""},{"$f":"IFERROR( IF( $C$7 < _xlfn.XLOOKUP(E$13,'Runtime Calculator'!$B$12:$D$12,'Runtime Calculator'!$B$42:$D$42), \"Run Time will be greater than listed Run Time\",\"\"),\"\")","v":""},{"$f":"IFERROR( IF( $C$7 < _xlfn.XLOOKUP(F$13,'Runtime Calculator'!$B$12:$D$12,'Runtime Calculator'!$B$42:$D$42), \"Run Time will be greater than listed Run Time\",\"\"),\"\")","v":""},{"$f":"IFERROR( IF( $C$7 < _xlfn.XLOOKUP(G$13,'Runtime Calculator'!$B$12:$D$12,'Runtime Calculator'!$B$42:$D$42), \"Run Time will be greater than listed Run Time\",\"\"),\"\")","v":""},{"$f":"IFERROR( IF( $C$7 < _xlfn.XLOOKUP(H$13,'Runtime Calculator'!$B$12:$D$12,'Runtime Calculator'!$B$42:$D$42), \"Run Time will be greater than listed Run Time\",\"\"),\"\")","v":""}]
[]
[null,"Errors",{"$f":"IF($C$8>C$31,\"Max Discharge Current higher than allowed by Cell\",\"\")","v":""},"","","","",""]

{"sheet":"Runtime Calculator","index":1,"n_rows":48,"n_cols":7,"rows_kept":48,"cut":false,"hidden":false,"merged":[]}
["Calculates Runtime Based on Configuration",null,"Insert new columns in between outer columns to maintain formulas on \"Battery Calculator for Runtime\" tab"]
[]
["Input"]
["Series",{"$f":"+'Battery Calculator for Runtime'!$C5","v":5},{"$f":"+'Battery Calculator for Runtime'!$C5","v":5},{"$f":"+'Battery Calculator for Runtime'!$C5","v":5},{"$f":"+'Battery Calculator for Runtime'!$C5","v":5},{"$f":"+'Battery Calculator for Runtime'!$C5","v":5},{"$f":"+'Battery Calculator for Runtime'!$C5","v":5}]
["Paralell",{"$f":"+'Battery Calculator for Runtime'!$C6","v":2},{"$f":"+'Battery Calculator for Runtime'!$C6","v":2},{"$f":"+'Battery Calculator for Runtime'!$C6","v":2},{"$f":"+'Battery Calculator for Runtime'!$C6","v":2},{"$f":"+'Battery Calculator for Runtime'!$C6","v":2},{"$f":"+'Battery Calculator for Runtime'!$C6","v":2}]
["Standard Current",{"$f":"+'Battery Calculator for Runtime'!$C7","v":5},{"$f":"+'Battery Calculator for Runtime'!$C7","v":5},{"$f":"+'Battery Calculator for Runtime'!$C7","v":5},{"$f":"+'Battery Calculator for Runtime'!$C7","v":5},{"$f":"+'Battery Calculator for Runtime'!$C7","v":5},{"$f":"+'Battery Calculator for Runtime'!$C7","v":5}]
["Max Current",{"$f":"+'Battery Calculator for Runtime'!$C8","v":30},{"$f":"+'Battery Calculator for Runtime'!$C8","v":30},{"$f":"+'Battery Calculator for Runtime'!$C8","v":30},{"$f":"+'Battery Calculator for Runtime'!$C8","v":30},{"$f":"+'Battery Calculator for Runtime'!$C8","v":30},{"$f":"+'Battery Calculator for Runtime'!$C8","v":30}]
[]
["Cell Data"]
["Cell Type","High Power","High Power","High Power","High Capacity","High Capacity","High Power"]
["Vendor","Moli","LithiumWerks","Moli","LG","LG","Panasonic"]
["Model","INR18650-P26A","ANR26650M1B","INR-21700-P42A","INR18650MJ1","INR18650MJ1","UR18650A"]
["Chemistry","Lithium Ion","Lithium Iron Phosphate","Lithium Ion","Lithium Ion","Lithium Ion","Lithium Ion"]
["Size",18650,26650,21700,18650,18650,18650]
["Discharge per Cell",2.5,2.5,2.5,2.5,2.5,2.5]
[]
["Nominal Capacity",2600,2600,4200]
["Minimum Capacity",null,2500,4000]
["Voltage",3.6,3.3,3.6]
["Cutoff Voltag",2.5,2,2.5]
["Max Current",35,120,45]
["Max Charge",6,10]
["Standard Charge Current",2.6,3,4.2]
["Standard Charge Time",1.5,null,1.5]
[]
[]
["Output"]
["Cell",{"$f":"B$12","v":"INR18650-P26A"},{"$f":"C$12","v":"ANR26650M1B"},"INR-21700-P42A",{"$f":"E$12","v":"INR18650MJ1"},{"$f":"F$12","v":"INR18650MJ1"},{"$f":"G$12","v":"UR18650A"}]
["Pack Voltage",{"$f":"+B4*B19","v":18},16.5,18,{"$f":"+E4*E19","v":0},{"$f":"+F4*F19","v":0},{"$f":"+G4*G19","v":0}]
["Pack Cutoff Voltage",{"$f":"+B4*B20","v":12.5},10,12.5,{"$f":"+E4*E20","v":0},{"$f":"+F4*F20","v":0},{"$f":"+G4*G20","v":0}]
["Rated Capacity (mAh)",{"$f":"+B5*B17","v":5200},5200,8400,{"$f":"+E5*E17","v":0},{"$f":"+F5*F17","v":0},{"$f":"+G5*G17","v":0}]
["Rated Capacity (Ah)",{"$f":"+B31/1000","v":5.2},5.2,8.4,{"$f":"+E31/1000","v":0},{"$f":"+F31/1000","v":0},{"$f":"+G31/1000","v":0}]
["Wh",{"$f":"+B29*B31/1000","v":93.6},85.8,151.19999999999999,{"$f":"+E29*E31/1000","v":0},{"$f":"+F29*F31/1000","v":0},{"$f":"+G29*G31/1000","v":0}]
["Max Current",{"$f":"+B5*B21","v":70},240,90,{"$f":"+E5*E21","v":0},{"$f":"+F5*F21","v":0},{"$f":"+G5*G21","v":0}]
["Standard Current Per Cell",{"$f":"+B6/B5","v":2.5},2.5,2.5,{"$f":"+E6/E5","v":2.5},{"$f":"+F6/F5","v":2.5},{"$f":"+G6/G5","v":2.5}]
["Cell Capacity at Standard Current",{"$f":"+B46","v":2454.8076923076924},2540,4225.2976190476193,{"$f":"+E46","v":""},"",""]
["Pack Capacity at Standard Current",{"$f":"+B47","v":4909.6153846153848},5080,8450.5952380952385,"","",""]
["Run Time (hours)",{"$f":"+B48","v":0.9819230769230769},1.016,1.6901190476190477,"","",""]
[]
["Calculation"]
["Data in Table",{"$f":" IF( _xlfn.XLOOKUP(B$15 & B$12,Capacity[[Discharge to]:[Discharge to]] & Capacity[[Cell]:[Cell]],Capacity[[Discharge Current]:[Discharge Current]],0) > 0,TRUE,FALSE)","v":true},{"$f":" IF( _xlfn.XLOOKUP(C$15 & C$12,Capacity[[Discharge to]:[Discharge to]] & Capacity[[Cell]:[Cell]],Capacity[[Discharge Current]:[Discharge Current]],0) > 0,TRUE,FALSE)","v":true},{"$f":" IF( _xlfn.XLOOKUP(D$15 & D$12,Capacity[[Discharge to]:[Discharge to]] & Capacity[[Cell]:[Cell]],Capacity[[Discharge Current]:[Discharge Current]],0) > 0,TRUE,FALSE)","v":true},{"$f":" IF( _xlfn.XLOOKUP(E$15 & E$12,Capacity[[Discharge to]:[Discharge to]] & Capacity[[Cell]:[Cell]],Capacity[[Discharge Current]:[Discharge Current]],0) > 0,TRUE,FALSE)","v":false},{"$f":" IF( _xlfn.XLOOKUP(F$15 & F$12,Capacity[[Discharge to]:[Discharge to]] & Capacity[[Cell]:[Cell]],Capacity[[Discharge Current]:[Discharge Current]],0) > 0,TRUE,FALSE)","v":false},{"$f":" IF( _xlfn.XLOOKUP(G$15 & G$12,Capacity[[Discharge to]:[Discharge to]] & Capacity[[Cell]:[Cell]],Capacity[[Discharge Current]:[Discharge Current]],0) > 0,TRUE,FALSE)","v":false}]
["Current - Lower",{"$f":"IF(B$41,\n_xlfn.XLOOKUP(B$35,\n       INDIRECT(\"Data!$C$\" & _xlfn.XMATCH(B$15&B$12,Capacity[[Discharge to]:[Discharge to]]&Capacity[[Cell]:[Cell]],,1)+1 & \":\" & \"$C$\" & _xlfn.XMATCH(B$15&B$12,Capacity[[Discharge to]:[Discharge to]]&Capacity[[Cell]:[Cell]],,-1)+1 ),\n       INDIRECT(\"Data!$C$\" & _xlfn.XMATCH(B$15&B$12,Capacity[[Discharge to]:[Discharge to]]&Capacity[[Cell]:[Cell]],,1)+1 & \":\" & \"$C$\" & _xlfn.XMATCH(B$15&B$12,Capacity[[Discharge to]:[Discharge to]]&Capacity[[Cell]:[Cell]],,-1)+1 ),\n       _xlfn.XLOOKUP(B$35,\n           INDIRECT(\"Data!$C$\" & _xlfn.XMATCH(B$15&B$12,Capacity[[Discharge to]:[Discharge to]]&Capacity[[Cell]:[Cell]],,1)+1 & \":\" & \"$C$\" & _xlfn.XMATCH(B$15&B$12,Capacity[[Discharge to]:[Discharge to]]&Capacity[[Cell]:[Cell]],,-1)+1 ),\n           INDIRECT(\"Data!$C$\" & _xlfn.XMATCH(B$15&B$12,Capacity[[Discharge to]:[Discharge to]]&Capacity[[Cell]:[Cell]],,1)+1 & \":\" & \"$C$\" & _xlfn.XMATCH(B$15&B$12,Capacity[[Discharge to]:[Discharge to]]&Capacity[[Cell]:[Cell]],,-1)+1 ),\n           ,1),\n       -1\n), \"\" )","v":0.52},{"$f":"IF(C$41,\n_xlfn.XLOOKUP(C$35,\n       INDIRECT(\"Data!$C$\" & _xlfn.XMATCH(C$15&C$12,Capacity[[Discharge to]:[Discharge to]]&Capacity[[Cell]:[Cell]],,1)+1 & \":\" & \"$C$\" & _xlfn.XMATCH(C$15&C$12,Capacity[[Discharge to]:[Discharge to]]&Capacity[[Cell]:[Cell]],,-1)+1 ),\n       INDIRECT(\"Data!$C$\" & _xlfn.XMATCH(C$15&C$12,Capacity[[Discharge to]:[Discharge to]]&Capacity[[Cell]:[Cell]],,1)+1 & \":\" & \"$C$\" & _xlfn.XMATCH(C$15&C$12,Capacity[[Discharge to]:[Discharge to]]&Capacity[[Cell]:[Cell]],,-1)+1 ),\n       _xlfn.XLOOKUP(C$35,\n           INDIRECT(\"Data!$C$\" & _xlfn.XMATCH(C$15&C$12,Capacity[[Discharge to]:[Discharge to]]&Capacity[[Cell]:[Cell]],,1)+1 & \":\" & \"$C$\" & _xlfn.XMATCH(C$15&C$12,Capacity[[Discharge to]:[Discharge to]]&Capacity[[Cell]:[Cell]],,-1)+1 ),\n           INDIRECT(\"Data!$C$\" & _xlfn.XMATCH(C$15&C$12,Capacity[[Discharge to]:[Discharge to]]&Capacity[[Cell]:[Cell]],,1)+1 & \":\" & \"$C$\" & _xlfn.XMATCH(C$15&C$12,Capacity[[Discharge to]:[Discharge to]]&Capacity[[Cell]:[Cell]],,-1)+1 ),\n           ,1),\n       -1\n), \"\" )","v":5},{"$f":"IF(D$41,\n_xlfn.XLOOKUP(D$35,\n       INDIRECT(\"Data!$C$\" & _xlfn.XMATCH(D$15&D$12,Capacity[[Discharge to]:[Discharge to]]&Capacity[[Cell]:[Cell]],,1)+1 & \":\" & \"$C$\" & _xlfn.XMATCH(D$15&D$12,Capacity[[Discharge to]:[Discharge to]]&Capacity[[Cell]:[Cell]],,-1)+1 ),\n       INDIRECT(\"Data!$C$\" & _xlfn.XMATCH(D$15&D$12,Capacity[[Discharge to]:[Discharge to]]&Capacity[[Cell]:[Cell]],,1)+1 & \":\" & \"$C$\" & _xlfn.XMATCH(D$15&D$12,Capacity[[Discharge to]:[Discharge to]]&Capacity[[Cell]:[Cell]],,-1)+1 ),\n       _xlfn.XLOOKUP(D$35,\n           INDIRECT(\"Data!$C$\" & _xlfn.XMATCH(D$15&D$12,Capacity[[Discharge to]:[Discharge to]]&Capacity[[Cell]:[Cell]],,1)+1 & \":\" & \"$C$\" & _xlfn.XMATCH(D$15&D$12,Capacity[[Discharge to]:[Discharge to]]&Capacity[[Cell]:[Cell]],,-1)+1 ),\n           INDIRECT(\"Data!$C$\" & _xlfn.XMATCH(D$15&D$12,Capacity[[Discharge to]:[Discharge to]]&Capacity[[Cell]:[Cell]],,1)+1 & \":\" & \"$C$\" & _xlfn.XMATCH(D$15&D$12,Capacity[[Discharge to]:[Discharge to]]&Capacity[[Cell]:[Cell]],,-1)+1 ),\n           ,1),\n       -1\n), \"\" )","v":0.84},{"$f":"IF(E$41,\n_xlfn.XLOOKUP(E$35,\n       INDIRECT(\"Data!$C$\" & _xlfn.XMATCH(E$15&E$12,Capacity[[Discharge to]:[Discharge to]]&Capacity[[Cell]:[Cell]],,1)+1 & \":\" & \"$C$\" & _xlfn.XMATCH(E$15&E$12,Capacity[[Discharge to]:[Discharge to]]&Capacity[[Cell]:[Cell]],,-1)+1 ),\n       INDIRECT(\"Data!$C$\" & _xlfn.XMATCH(E$15&E$12,Capacity[[Discharge to]:[Discharge to]]&Capacity[[Cell]:[Cell]],,1)+1 & \":\" & \"$C$\" & _xlfn.XMATCH(E$15&E$12,Capacity[[Discharge to]:[Discharge to]]&Capacity[[Cell]:[Cell]],,-1)+1 ),\n       _xlfn.XLOOKUP(E$35,\n           INDIRECT(\"Data!$C$\" & _xlfn.XMATCH(E$15&E$12,Capacity[[Discharge to]:[Discharge to]]&Capacity[[Cell]:[Cell]],,1)+1 & \":\" & \"$C$\" & _xlfn.XMATCH(E$15&E$12,Capacity[[Discharge to]:[Discharge to]]&Capacity[[Cell]:[Cell]],,-1)+1 ),\n           INDIRECT(\"Data!$C$\" & _xlfn.XMATCH(E$15&E$12,Capacity[[Discharge to]:[Discharge to]]&Capacity[[Cell]:[Cell]],,1)+1 & \":\" & \"$C$\" & _xlfn.XMATCH(E$15&E$12,Capacity[[Discharge to]:[Discharge to]]&Capacity[[Cell]:[Cell]],,-1)+1 ),\n           ,1),\n       -1\n), \"\" )","v":""},{"$f":"IF(F$41,\n_xlfn.XLOOKUP(F$35,\n       INDIRECT(\"Data!$C$\" & _xlfn.XMATCH(F$15&F$12,Capacity[[Discharge to]:[Discharge to]]&Capacity[[Cell]:[Cell]],,1)+1 & \":\" & \"$C$\" & _xlfn.XMATCH(F$15&F$12,Capacity[[Discharge to]:[Discharge to]]&Capacity[[Cell]:[Cell]],,-1)+1 ),\n       INDIRECT(\"Data!$C$\" & _xlfn.XMATCH(F$15&F$12,Capacity[[Discharge to]:[Discharge to]]&Capacity[[Cell]:[Cell]],,1)+1 & \":\" & \"$C$\" & _xlfn.XMATCH(F$15&F$12,Capacity[[Discharge to]:[Discharge to]]&Capacity[[Cell]:[Cell]],,-1)+1 ),\n       _xlfn.XLOOKUP(F$35,\n           INDIRECT(\"Data!$C$\" & _xlfn.XMATCH(F$15&F$12,Capacity[[Discharge to]:[Discharge to]]&Capacity[[Cell]:[Cell]],,1)+1 & \":\" & \"$C$\" & _xlfn.XMATCH(F$15&F$12,Capacity[[Discharge to]:[Discharge to]]&Capacity[[Cell]:[Cell]],,-1)+1 ),\n           INDIRECT(\"Data!$C$\" & _xlfn.XMATCH(F$15&F$12,Capacity[[Discharge to]:[Discharge to]]&Capacity[[Cell]:[Cell]],,1)+1 & \":\" & \"$C$\" & _xlfn.XMATCH(F$15&F$12,Capacity[[Discharge to]:[Discharge to]]&Capacity[[Cell]:[Cell]],,-1)+1 ),\n           ,1),\n       -1\n), \"\" )","v":""},{"$f":"IF(G$41,\n_xlfn.XLOOKUP(G$35,\n       INDIRECT(\"Data!$C$\" & _xlfn.XMATCH(G$15&G$12,Capacity[[Discharge to]:[Discharge to]]&Capacity[[Cell]:[Cell]],,1)+1 & \":\" & \"$C$\" & _xlfn.XMATCH(G$15&G$12,Capacity[[Discharge to]:[Discharge to]]&Capacity[[Cell]:[Cell]],,-1)+1 ),\n       INDIRECT(\"Data!$C$\" & _xlfn.XMATCH(G$15&G$12,Capacity[[Discharge to]:[Discharge to]]&Capacity[[Cell]:[Cell]],,1)+1 & \":\" & \"$C$\" & _xlfn.XMATCH(G$15&G$12,Capacity[[Discharge to]:[Discharge to]]&Capacity[[Cell]:[Cell]],,-1)+1 ),\n       _xlfn.XLOOKUP(G$35,\n           INDIRECT(\"Data!$C$\" & _xlfn.XMATCH(G$15&G$12,Capacity[[Discharge to]:[Discharge to]]&Capacity[[Cell]:[Cell]],,1)+1 & \":\" & \"$C$\" & _xlfn.XMATCH(G$15&G$12,Capacity[[Discharge to]:[Discharge to]]&Capacity[[Cell]:[Cell]],,-1)+1 ),\n           INDIRECT(\"Data!$C$\" & _xlfn.XMATCH(G$15&G$12,Capacity[[Discharge to]:[Discharge to]]&Capacity[[Cell]:[Cell]],,1)+1 & \":\" & \"$C$\" & _xlfn.XMATCH(G$15&G$12,Capacity[[Discharge to]:[Discharge to]]&Capacity[[Cell]:[Cell]],,-1)+1 ),\n           ,1),\n       -1\n), \"\" )","v":""}]
["Upper - Upper",{"$f":"IF(B$41,\n_xlfn.XLOOKUP(B$35,\n       INDIRECT(\"Data!$C$\" & _xlfn.XMATCH(B$15&B$12,Capacity[[Discharge to]:[Discharge to]]&Capacity[[Cell]:[Cell]],,1)+1 & \":\" & \"$C$\" & _xlfn.XMATCH(B$15&B$12,Capacity[[Discharge to]:[Discharge to]]&Capacity[[Cell]:[Cell]],,-1)+1 ),\n       INDIRECT(\"Data!$C$\" & _xlfn.XMATCH(B$15&B$12,Capacity[[Discharge to]:[Discharge to]]&Capacity[[Cell]:[Cell]],,1)+1 & \":\" & \"$C$\" & _xlfn.XMATCH(B$15&B$12,Capacity[[Discharge to]:[Discharge to]]&Capacity[[Cell]:[Cell]],,-1)+1 ),\n       _xlfn.XLOOKUP(B$35,\n           INDIRECT(\"Data!$C$\" & _xlfn.XMATCH(B$15&B$12,Capacity[[Discharge to]:[Discharge to]]&Capacity[[Cell]:[Cell]],,1)+1 & \":\" & \"$C$\" & _xlfn.XMATCH(B$15&B$12,Capacity[[Discharge to]:[Discharge to]]&Capacity[[Cell]:[Cell]],,-1)+1 ),\n           INDIRECT(\"Data!$C$\" & _xlfn.XMATCH(B$15&B$12,Capacity[[Discharge to]:[Discharge to]]&Capacity[[Cell]:[Cell]],,1)+1 & \":\" & \"$C$\" & _xlfn.XMATCH(B$15&B$12,Capacity[[Discharge to]:[Discharge to]]&Capacity[[Cell]:[Cell]],,-1)+1 ),\n           ,-1),\n       1\n), \"\" )","v":2.6},{"$f":"IF(C$41,\n_xlfn.XLOOKUP(C$35,\n       INDIRECT(\"Data!$C$\" & _xlfn.XMATCH(C$15&C$12,Capacity[[Discharge to]:[Discharge to]]&Capacity[[Cell]:[Cell]],,1)+1 & \":\" & \"$C$\" & _xlfn.XMATCH(C$15&C$12,Capacity[[Discharge to]:[Discharge to]]&Capacity[[Cell]:[Cell]],,-1)+1 ),\n       INDIRECT(\"Data!$C$\" & _xlfn.XMATCH(C$15&C$12,Capacity[[Discharge to]:[Discharge to]]&Capacity[[Cell]:[Cell]],,1)+1 & \":\" & \"$C$\" & _xlfn.XMATCH(C$15&C$12,Capacity[[Discharge to]:[Discharge to]]&Capacity[[Cell]:[Cell]],,-1)+1 ),\n       _xlfn.XLOOKUP(C$35,\n           INDIRECT(\"Data!$C$\" & _xlfn.XMATCH(C$15&C$12,Capacity[[Discharge to]:[Discharge to]]&Capacity[[Cell]:[Cell]],,1)+1 & \":\" & \"$C$\" & _xlfn.XMATCH(C$15&C$12,Capacity[[Discharge to]:[Discharge to]]&Capacity[[Cell]:[Cell]],,-1)+1 ),\n           INDIRECT(\"Data!$C$\" & _xlfn.XMATCH(C$15&C$12,Capacity[[Discharge to]:[Discharge to]]&Capacity[[Cell]:[Cell]],,1)+1 & \":\" & \"$C$\" & _xlfn.XMATCH(C$15&C$12,Capacity[[Discharge to]:[Discharge to]]&Capacity[[Cell]:[Cell]],,-1)+1 ),\n           ,-1),\n       1\n), \"\" )","v":5},{"$f":"IF(D$41,\n_xlfn.XLOOKUP(D$35,\n       INDIRECT(\"Data!$C$\" & _xlfn.XMATCH(D$15&D$12,Capacity[[Discharge to]:[Discharge to]]&Capacity[[Cell]:[Cell]],,1)+1 & \":\" & \"$C$\" & _xlfn.XMATCH(D$15&D$12,Capacity[[Discharge to]:[Discharge to]]&Capacity[[Cell]:[Cell]],,-1)+1 ),\n       INDIRECT(\"Data!$C$\" & _xlfn.XMATCH(D$15&D$12,Capacity[[Discharge to]:[Discharge to]]&Capacity[[Cell]:[Cell]],,1)+1 & \":\" & \"$C$\" & _xlfn.XMATCH(D$15&D$12,Capacity[[Discharge to]:[Discharge to]]&Capacity[[Cell]:[Cell]],,-1)+1 ),\n       _xlfn.XLOOKUP(D$35,\n           INDIRECT(\"Data!$C$\" & _xlfn.XMATCH(D$15&D$12,Capacity[[Discharge to]:[Discharge to]]&Capacity[[Cell]:[Cell]],,1)+1 & \":\" & \"$C$\" & _xlfn.XMATCH(D$15&D$12,Capacity[[Discharge to]:[Discharge to]]&Capacity[[Cell]:[Cell]],,-1)+1 ),\n           INDIRECT(\"Data!$C$\" & _xlfn.XMATCH(D$15&D$12,Capacity[[Discharge to]:[Discharge to]]&Capacity[[Cell]:[Cell]],,1)+1 & \":\" & \"$C$\" & _xlfn.XMATCH(D$15&D$12,Capacity[[Discharge to]:[Discharge to]]&Capacity[[Cell]:[Cell]],,-1)+1 ),\n           ,-1),\n       1\n), \"\" )","v":4.2},{"$f":"IF(E$41,\n_xlfn.XLOOKUP(E$35,\n       INDIRECT(\"Data!$C$\" & _xlfn.XMATCH(E$15&E$12,Capacity[[Discharge to]:[Discharge to]]&Capacity[[Cell]:[Cell]],,1)+1 & \":\" & \"$C$\" & _xlfn.XMATCH(E$15&E$12,Capacity[[Discharge to]:[Discharge to]]&Capacity[[Cell]:[Cell]],,-1)+1 ),\n       INDIRECT(\"Data!$C$\" & _xlfn.XMATCH(E$15&E$12,Capacity[[Discharge to]:[Discharge to]]&Capacity[[Cell]:[Cell]],,1)+1 & \":\" & \"$C$\" & _xlfn.XMATCH(E$15&E$12,Capacity[[Discharge to]:[Discharge to]]&Capacity[[Cell]:[Cell]],,-1)+1 ),\n       _xlfn.XLOOKUP(E$35,\n           INDIRECT(\"Data!$C$\" & _xlfn.XMATCH(E$15&E$12,Capacity[[Discharge to]:[Discharge to]]&Capacity[[Cell]:[Cell]],,1)+1 & \":\" & \"$C$\" & _xlfn.XMATCH(E$15&E$12,Capacity[[Discharge to]:[Discharge to]]&Capacity[[Cell]:[Cell]],,-1)+1 ),\n           INDIRECT(\"Data!$C$\" & _xlfn.XMATCH(E$15&E$12,Capacity[[Discharge to]:[Discharge to]]&Capacity[[Cell]:[Cell]],,1)+1 & \":\" & \"$C$\" & _xlfn.XMATCH(E$15&E$12,Capacity[[Discharge to]:[Discharge to]]&Capacity[[Cell]:[Cell]],,-1)+1 ),\n           ,-1),\n       1\n), \"\" )","v":""},{"$f":"IF(F$41,\n_xlfn.XLOOKUP(F$35,\n       INDIRECT(\"Data!$C$\" & _xlfn.XMATCH(F$15&F$12,Capacity[[Discharge to]:[Discharge to]]&Capacity[[Cell]:[Cell]],,1)+1 & \":\" & \"$C$\" & _xlfn.XMATCH(F$15&F$12,Capacity[[Discharge to]:[Discharge to]]&Capacity[[Cell]:[Cell]],,-1)+1 ),\n       INDIRECT(\"Data!$C$\" & _xlfn.XMATCH(F$15&F$12,Capacity[[Discharge to]:[Discharge to]]&Capacity[[Cell]:[Cell]],,1)+1 & \":\" & \"$C$\" & _xlfn.XMATCH(F$15&F$12,Capacity[[Discharge to]:[Discharge to]]&Capacity[[Cell]:[Cell]],,-1)+1 ),\n       _xlfn.XLOOKUP(F$35,\n           INDIRECT(\"Data!$C$\" & _xlfn.XMATCH(F$15&F$12,Capacity[[Discharge to]:[Discharge to]]&Capacity[[Cell]:[Cell]],,1)+1 & \":\" & \"$C$\" & _xlfn.XMATCH(F$15&F$12,Capacity[[Discharge to]:[Discharge to]]&Capacity[[Cell]:[Cell]],,-1)+1 ),\n           INDIRECT(\"Data!$C$\" & _xlfn.XMATCH(F$15&F$12,Capacity[[Discharge to]:[Discharge to]]&Capacity[[Cell]:[Cell]],,1)+1 & \":\" & \"$C$\" & _xlfn.XMATCH(F$15&F$12,Capacity[[Discharge to]:[Discharge to]]&Capacity[[Cell]:[Cell]],,-1)+1 ),\n           ,-1),\n       1\n), \"\" )","v":""},{"$f":"IF(G$41,\n_xlfn.XLOOKUP(G$35,\n       INDIRECT(\"Data!$C$\" & _xlfn.XMATCH(G$15&G$12,Capacity[[Discharge to]:[Discharge to]]&Capacity[[Cell]:[Cell]],,1)+1 & \":\" & \"$C$\" & _xlfn.XMATCH(G$15&G$12,Capacity[[Discharge to]:[Discharge to]]&Capacity[[Cell]:[Cell]],,-1)+1 ),\n       INDIRECT(\"Data!$C$\" & _xlfn.XMATCH(G$15&G$12,Capacity[[Discharge to]:[Discharge to]]&Capacity[[Cell]:[Cell]],,1)+1 & \":\" & \"$C$\" & _xlfn.XMATCH(G$15&G$12,Capacity[[Discharge to]:[Discharge to]]&Capacity[[Cell]:[Cell]],,-1)+1 ),\n       _xlfn.XLOOKUP(G$35,\n           INDIRECT(\"Data!$C$\" & _xlfn.XMATCH(G$15&G$12,Capacity[[Discharge to]:[Discharge to]]&Capacity[[Cell]:[Cell]],,1)+1 & \":\" & \"$C$\" & _xlfn.XMATCH(G$15&G$12,Capacity[[Discharge to]:[Discharge to]]&Capacity[[Cell]:[Cell]],,-1)+1 ),\n           INDIRECT(\"Data!$C$\" & _xlfn.XMATCH(G$15&G$12,Capacity[[Discharge to]:[Discharge to]]&Capacity[[Cell]:[Cell]],,1)+1 & \":\" & \"$C$\" & _xlfn.XMATCH(G$15&G$12,Capacity[[Discharge to]:[Discharge to]]&Capacity[[Cell]:[Cell]],,-1)+1 ),\n           ,-1),\n       1\n), \"\" )","v":""}]
["Capacity - Lower",{"$f":"IF(B$41, _xlfn.XLOOKUP(B$15&B$28&B$42,Capacity[[Discharge to]:[Discharge to]]&Capacity[[Cell]:[Cell]]&Capacity[[Discharge Current]:[Discharge Current]],Capacity[[Capacity]:[Capacity]],_xlfn.XLOOKUP(B$15&B$28&B$42,Capacity[[Discharge to]:[Discharge to]]&Capacity[[Cell]:[Cell]]&Capacity[[Discharge Current]:[Discharge Current]],Capacity[[Capacity]:[Capacity]],,1),1),\"\")","v":2550},{"$f":"IF(C41, _xlfn.XLOOKUP(C$15&C$28&C$42,Capacity[[Discharge to]:[Discharge to]]&Capacity[[Cell]:[Cell]]&Capacity[[Discharge Current]:[Discharge Current]],Capacity[[Capacity]:[Capacity]],_xlfn.XLOOKUP(C$15&C$28&C$42,Capacity[[Discharge to]:[Discharge to]]&Capacity[[Cell]:[Cell]]&Capacity[[Discharge Current]:[Discharge Current]],Capacity[[Capacity]:[Capacity]],,1),-1),\"\")","v":2540},{"$f":"IF(D41, _xlfn.XLOOKUP(D$15&D$28&D$42,Capacity[[Discharge to]:[Discharge to]]&Capacity[[Cell]:[Cell]]&Capacity[[Discharge Current]:[Discharge Current]],Capacity[[Capacity]:[Capacity]],_xlfn.XLOOKUP(D$15&D$28&D$42,Capacity[[Discharge to]:[Discharge to]]&Capacity[[Cell]:[Cell]]&Capacity[[Discharge Current]:[Discharge Current]],Capacity[[Capacity]:[Capacity]],,1),-1),\"\")","v":4250},{"$f":"IF(E41, _xlfn.XLOOKUP(E$15&E$28&E$42,Capacity[[Discharge to]:[Discharge to]]&Capacity[[Cell]:[Cell]]&Capacity[[Discharge Current]:[Discharge Current]],Capacity[[Capacity]:[Capacity]],_xlfn.XLOOKUP(E$15&E$28&E$42,Capacity[[Discharge to]:[Discharge to]]&Capacity[[Cell]:[Cell]]&Capacity[[Discharge Current]:[Discharge Current]],Capacity[[Capacity]:[Capacity]],,1),-1),\"\")","v":""},{"$f":"IF(F41, _xlfn.XLOOKUP(F$15&F$28&F$42,Capacity[[Discharge to]:[Discharge to]]&Capacity[[Cell]:[Cell]]&Capacity[[Discharge Current]:[Discharge Current]],Capacity[[Capacity]:[Capacity]],_xlfn.XLOOKUP(F$15&F$28&F$42,Capacity[[Discharge to]:[Discharge to]]&Capacity[[Cell]:[Cell]]&Capacity[[Discharge Current]:[Discharge Current]],Capacity[[Capacity]:[Capacity]],,1),-1),\"\")","v":""},{"$f":"IF(G41, _xlfn.XLOOKUP(G$15&G$28&G$42,Capacity[[Discharge to]:[Discharge to]]&Capacity[[Cell]:[Cell]]&Capacity[[Discharge Current]:[Discharge Current]],Capacity[[Capacity]:[Capacity]],_xlfn.XLOOKUP(G$15&G$28&G$42,Capacity[[Discharge to]:[Discharge to]]&Capacity[[Cell]:[Cell]]&Capacity[[Discharge Current]:[Discharge Current]],Capacity[[Capacity]:[Capacity]],,1),-1),\"\")","v":""}]
["Capacity - Upper",{"$f":"IF(B$41, _xlfn.XLOOKUP(B$15&B$28&B$43,Capacity[[Discharge to]:[Discharge to]]&Capacity[[Cell]:[Cell]]&Capacity[[Discharge Current]:[Discharge Current]],Capacity[[Capacity]:[Capacity]],,1),\"\")","v":2450},{"$f":"IF(C$41, _xlfn.XLOOKUP(C$15&C$28&C$43,Capacity[[Discharge to]:[Discharge to]]&Capacity[[Cell]:[Cell]]&Capacity[[Discharge Current]:[Discharge Current]],Capacity[[Capacity]:[Capacity]],,1),\"\")","v":2540},{"$f":"IF(D$41, _xlfn.XLOOKUP(D$15&D$28&D$43,Capacity[[Discharge to]:[Discharge to]]&Capacity[[Cell]:[Cell]]&Capacity[[Discharge Current]:[Discharge Current]],Capacity[[Capacity]:[Capacity]],,1),\"\")","v":4200},{"$f":"IF(E$41, _xlfn.XLOOKUP(E$15&E$28&E$43,Capacity[[Discharge to]:[Discharge to]]&Capacity[[Cell]:[Cell]]&Capacity[[Discharge Current]:[Discharge Current]],Capacity[[Capacity]:[Capacity]],,1),\"\")","v":""},{"$f":"IF(F$41, _xlfn.XLOOKUP(F$15&F$28&F$43,Capacity[[Discharge to]:[Discharge to]]&Capacity[[Cell]:[Cell]]&Capacity[[Discharge Current]:[Discharge Current]],Capacity[[Capacity]:[Capacity]],,1),\"\")","v":""},{"$f":"IF(G$41, _xlfn.XLOOKUP(G$15&G$28&G$43,Capacity[[Discharge to]:[Discharge to]]&Capacity[[Cell]:[Cell]]&Capacity[[Discharge Current]:[Discharge Current]],Capacity[[Capacity]:[Capacity]],,1),\"\")","v":""}]
["Cell Capacity at Standard Discharge Current",{"$f":"IF( B$42=B$43, _xlfn.XLOOKUP(B$15&B$28&B$42,Capacity[[Discharge to]:[Discharge to]]&Capacity[[Cell]:[Cell]]&Capacity[[Discharge Current]:[Discharge Current]],Capacity[[Capacity]:[Capacity]],\"\"), _xlfn.FORECAST.LINEAR(B$15,B$44:B$45,B$42:B$43))","v":2454.8076923076924},{"$f":"IF( C$42=C$43, _xlfn.XLOOKUP(C$15&C$28&C$42,Capacity[[Discharge to]:[Discharge to]]&Capacity[[Cell]:[Cell]]&Capacity[[Discharge Current]:[Discharge Current]],Capacity[[Capacity]:[Capacity]],\"\"), _xlfn.FORECAST.LINEAR(C$15,C$44:C$45,C$42:C$43))","v":2540},{"$f":"IF( D$42=D$43, _xlfn.XLOOKUP(D$15&D$28&D$42,Capacity[[Discharge to]:[Discharge to]]&Capacity[[Cell]:[Cell]]&Capacity[[Discharge Current]:[Discharge Current]],Capacity[[Capacity]:[Capacity]],\"\"), _xlfn.FORECAST.LINEAR(D$15,D$44:D$45,D$42:D$43))","v":4225.2976190476193},{"$f":"IF( E$42=E$43, _xlfn.XLOOKUP(E$15&E$28&E$42,Capacity[[Discharge to]:[Discharge to]]&Capacity[[Cell]:[Cell]]&Capacity[[Discharge Current]:[Discharge Current]],Capacity[[Capacity]:[Capacity]],\"\"), _xlfn.FORECAST.LINEAR(E$15,E$44:E$45,E$42:E$43))","v":""},{"$f":"IF( F$42=F$43, _xlfn.XLOOKUP(F$15&F$28&F$42,Capacity[[Discharge to]:[Discharge to]]&Capacity[[Cell]:[Cell]]&Capacity[[Discharge Current]:[Discharge Current]],Capacity[[Capacity]:[Capacity]],\"\"), _xlfn.FORECAST.LINEAR(F$15,F$44:F$45,F$42:F$43))","v":""},{"$f":"IF( G$42=G$43, _xlfn.XLOOKUP(G$15&G$28&G$42,Capacity[[Discharge to]:[Discharge to]]&Capacity[[Cell]:[Cell]]&Capacity[[Discharge Current]:[Discharge Current]],Capacity[[Capacity]:[Capacity]],\"\"), _xlfn.FORECAST.LINEAR(G$15,G$44:G$45,G$42:G$43))","v":""}]
["Pack Capacity at Standard Discharge Current",{"$f":"IFERROR(B$46*B$5,\"\")","v":4909.6153846153848},5080,8450.5952380952385,"","",""]
["Run Time (hours)",{"$f":"IFERROR( B47/B6/1000,\"\")","v":0.9819230769230769},1.016,1.6901190476190477,"","",""]

{"sheet":"Data","index":2,"n_rows":16,"n_cols":9,"rows_kept":16,"cut":false,"hidden":false,"merged":[]}
["Discharge to","Cell","Discharge Current","Capacity"]
[3,"INR18650-P26A",0.52,2500,null,null,null,null,"Reapply Sort after adding more items"]
[3,"INR18650-P26A",2.6,2300]
[3,"INR18650-P26A",10,2350]
[3,"INR18650-P26A",20,2200]
[2.5,"ANR26650M1B",5,2540]
[2.5,"ANR26650M1B",50,2510]
[2.5,"INR18650-P26A",0.52,2550]
[2.5,"INR18650-P26A",2.6,2450]
[2.5,"INR18650-P26A",10,2500]
[2.5,"INR18650-P26A",20,2500]
[2.5,"INR-21700-P42A",0.84,4250]
[2.5,"INR-21700-P42A",4.2,4200]
[2.5,"INR-21700-P42A",10,4175]
[2.5,"INR-21700-P42A",20,4175]
[2.5,"INR-21700-P42A",30,4100]